bitfinex-derivatives/quotes_ETHF0:USTF0_20250904
["timestamp","ask_amount","ask_price","bid_price","bid_amount"]
[1756995962328,1.3285,4353.9,4353.7,0.247]
[1756995962924,3.2078,4353.8,4353.7,0.247]
[1756995963227,4.5363,4353.8,4353.7,0.247]
[1756995964632,0.5625,4354.0,4353.8,0.9154]
[1756995964633,1.3285,4354.0,4353.8,0.9154]
[1756995964821,1.3285,4354.0,4353.7,0.247]
[1756995965023,1.3285,4354.4,4353.7,1.1624]
[1756995965228,1.3285,4354.4,4353.7,0.247]
[1756995965721,1.3285,4354.4,4353.7,0.48208575]
[1756995965926,1.3285,4353.9,4353.8,0.247]
[1756995966628,1.3285,4353.9,4353.8,4.34516017]
[1756995967223,0.5625,4354.0,4352.9,3.2078]
[1756995967534,1.3285,4353.9,4353.0,0.247]
[1756995968127,1.891,4353.5,4353.4,3.2078]
[1756995968427,1.3285,4353.9,4353.4,3.4548]
[1756995968826,0.5625,4354.0,4353.4,3.4548]
[1756995969026,1.891,4354.0,4353.4,3.4548]
[1756995970033,1.891,4354.0,4353.9,3.2078]
[1756995970334,1.3285,4354.0,4353.9,3.4548]
[1756995970827,1.891,4354.0,4353.9,3.4548]
[1756995971428,1.3285,4354.4,4353.9,4.3702]
[1756995971629,1.891,4354.5,4354.3,4.09816017]
[1756995971828,1.4763,4355.0,4354.4,4.78346]
[1756995972022,1.4763,4355.0,4354.4,44.0078]
[1756995972023,1.891,4354.5,4354.4,44.0078]
[1756995972223,1.891,4354.5,4354.4,44.2548]
[1756995972529,1.891,4354.5,4354.4,44.0078]
[1756995972734,1.8794,4354.0,4353.9,3.2078]
[1756995972935,1.8794,4354.0,4353.9,3.4548]
[1756995973138,0.5625,4354.5,4353.9,3.4548]
[1756995973330,1.8834,4354.5,4354.4,4.09816017]
[1756995973531,1.8834,4354.5,4354.4,4.34516017]
[1756995973830,0.5585,4354.0,4353.9,3.2078]
[1756995974136,0.5625,4354.5,4353.9,3.4548]
[1756995974726,0.5625,4354.5,4354.0,0.247]
[1756995974931,1.3209,4354.4,4354.0,0.247]
[1756995975543,0.5625,4354.5,4354.0,0.247]
[1756995975731,1.3209,4354.4,4354.0,0.247]
[1756995976438,0.5585,4353.5,4352.9,3.2078]
[1756995976632,0.5585,4353.5,4353.0,0.247]
[1756995976943,1.3209,4353.4,4353.0,0.247]
[1756995977242,1.8794,4354.0,4353.2,0.8978]
[1756995977532,0.5585,4354.0,4353.7,3.2078]
[1756995977735,0.5585,4354.0,4353.8,0.247]
[1756995977736,1.3209,4353.9,4353.8,0.247]
[1756995980035,1.3209,4353.9,4353.7,3.2078]
[1756995980240,1.3209,4353.9,4353.8,0.247]
[1756995980541,1.3209,4353.9,4353.8,4.34516017]
[1756995981842,1.3209,4353.9,4353.8,0.247]
[1756995982246,1.3209,4353.9,4353.7,3.2078]
[1756995982433,0.5625,4354.5,4353.8,4.34516017]
[1756995982638,0.5585,4355.0,4354.4,4.99596017]
[1756995982841,0.5585,4355.5,4354.8,3.2078]
[1756995983152,0.5585,4355.0,4354.9,0.247]
[1756995983342,1.8794,4355.0,4354.9,0.247]
[1756995984141,1.3209,4354.9,4354.8,3.2078]
[1756995984443,1.3209,4354.9,4354.8,3.4548]
[1756995985341,1.3209,4355.4,4354.8,3.4548]
[1756995985743,0.5585,4355.5,4354.8,3.4548]
[1756995985942,1.3209,4354.9,4354.8,3.4548]
[1756995986443,1.3209,4354.9,4354.8,0.247]
[1756995987443,1.3209,4354.9,4354.1,4.09816017]
[1756995987444,1.3209,4354.4,4354.1,4.09816017]
[1756995987647,0.5585,4354.0,4353.6,0.2322999]
[1756995987848,1.3209,4353.9,4353.7,0.247]
[1756995988040,0.5585,4354.5,4353.8,3.2078]
[1756995988235,0.5585,4354.0,4353.9,0.247]
[1756995988440,1.8794,4354.0,4353.9,0.247]
[1756995989144,1.3209,4353.4,4353.3,3.2078]
[1756995989350,1.3209,4353.4,4353.3,0.247]
[1756995989743,0.5585,4353.0,4352.7,2.85755634]
[1756995989942,1.3209,4352.9,4352.8,0.247]
[1756995991049,0.5585,4352.5,4352.1,6.06535634]
[1756995991249,1.3209,4352.4,4352.2,0.247]
[1756995991440,0.5585,4352.5,4352.2,0.247]
[1756995992047,1.3209,4352.4,4352.3,3.2078]
[1756995992644,1.3209,4352.9,4352.3,4.3526]
[1756995992847,1.3209,4352.9,4352.5,5.24296017]
[1756995993048,3.7663,4353.0,4352.5,5.24296017]
[1756995993049,1.3209,4352.7,4352.6,0.247]
[1756995994743,1.3209,4353.4,4352.6,0.247]
[1756995994941,1.3209,4352.9,4352.8,3.2078]
[1756995995343,1.3209,4352.9,4352.8,0.247]
[1756995999544,5.3209,4352.9,4352.5,0.247]
[1756995999745,1.3209,4352.4,4352.3,3.2078]
[1756995999952,1.3209,4352.4,4352.3,3.4548]
[1756996000347,0.5585,4352.0,4351.6,3.2078]
[1756996000546,1.3209,4351.8,4351.7,0.247]
[1756996000942,0.5585,4352.0,4351.7,0.247]
[1756996001146,1.3209,4351.9,4351.7,0.247]
[1756996002357,1.8766,4351.5,4351.4,3.2078]
[1756996003048,1.8766,4351.5,4351.3,0.247]
[1756996005849,1.1984,4351.3,4351.0,0.01]
[1756996006054,1.3284,4351.2,4351.0,0.01]
[1756996006554,1.1984,4351.3,4351.0,0.01]
[1756996006755,1.3284,4351.2,4351.0,0.01]
[1756996007256,1.1984,4351.3,4351.0,0.01]
[1756996007750,1.1984,4351.3,4351.1,1.3358]
[1756996007955,1.1984,4351.3,4351.0,0.01]
[1756996008847,3.2078,4351.8,4351.1,1.3358]
[1756996009256,1.3284,4351.7,4351.0,0.01]
[1756996009950,1.3284,4351.7,4351.1,1.3358]
[1756996010952,0.247,4352.4,4351.4,3.2078]
[1756996011156,1.3284,4351.9,4351.5,0.247]
[1756996011551,3.7663,4352.5,4351.5,0.247]
[1756996011755,1.3284,4351.9,4351.6,1.3358]
[1756996012055,1.9784,4351.5,4351.4,3.2078]
[1756996012353,2.5266,4351.5,4351.4,3.4548]
[1756996012953,0.65,4351.5,4351.4,7.4548]
[1756996013751,3.451,4351.5,4351.4,5.3141]
[1756996013947,4.3502,4351.5,4351.4,3.4548]
[1756996014151,4.3502,4351.5,4351.4,5.3141]
[1756996014760,3.7002,4351.5,4351.4,5.3141]
[1756996015360,3.7002,4351.5,4351.4,3.4548]
[1756996015561,3.7002,4351.5,4351.4,0.247]
[1756996015759,1.8766,4351.5,4351.4,0.247]
[1756996016155,5.8766,4351.5,4351.0,0.01]
[1756996016355,1.8766,4351.5,4351.1,0.247]
[1756996016750,1.8766,4351.5,4351.0,0.01]
[1756996018857,1.3284,4351.4,4351.0,0.01]
[1756996022160,0.5482,4350.5,4350.3,3.2078]
[1756996022360,1.3284,4350.4,4350.3,3.4548]
[1756996023861,1.3284,4350.9,4350.3,6.3389]
[1756996025453,1.3284,4350.9,4350.3,5.3141]
[1756996025661,0.5482,4351.0,4350.3,6.3389]
[1756996025868,0.9244,4350.4,4350.3,5.3141]
[1756996026164,2.2528,4350.4,4350.3,5.3141]
[1756996026365,1.3284,4350.9,4350.3,6.3389]
[1756996027356,1.3284,4350.9,4350.3,6.75255]
[1756996027565,1.3284,4350.9,4350.3,6.3389]
[1756996027861,0.5482,4351.0,4350.3,6.3389]
[1756996028068,1.3284,4350.9,4350.3,6.3389]
[1756996028569,0.9244,4351.3,4351.2,1.8593]
[1756996028862,0.5482,4351.5,4351.3,1.0248]
[1756996029067,1.8766,4351.5,4351.4,1.8593]
[1756996029262,2.801,4351.5,4351.4,1.8593]
[1756996029459,2.3718,4351.5,4351.3,3.2078]
[1756996029660,3.152,4351.4,4351.3,3.2078]
[1756996030067,5.1316,4351.4,4351.2,0.247]
[1756996030264,2.2528,4351.3,4351.2,1.1582]
[1756996030464,3.152,4351.3,4351.2,1.1582]
[1756996030868,2.2528,4351.3,4351.2,2.1063]
[1756996031169,3.152,4351.3,4351.2,1.1582]
[1756996031368,3.152,4351.3,4351.2,5.3141]
[1756996031966,3.308,4351.4,4351.3,1.0248]
[1756996032169,0.5482,4352.0,4351.3,2.8841]
[1756996032366,1.4115,4351.9,4351.3,2.8841]
[1756996033069,1.4115,4351.9,4351.2,3.4548]
[1756996033070,1.4115,4351.9,4351.8,1.7508]
[1756996033366,0.5482,4352.0,4351.8,2.9933]
[1756996033562,0.5603,4352.0,4351.8,0.247]
[1756996033768,3.265,4351.9,4351.8,0.247]
[1756996034267,3.265,4351.9,4351.8,1.9978]
[1756996034472,2.3409,4351.9,4351.8,1.9978]
[1756996034674,3.265,4351.9,4351.8,1.9978]
[1756996034873,3.265,4351.9,4351.8,0.247]
[1756996036762,3.265,4351.1,4351.0,3.2078]
[1756996037170,3.265,4351.1,4351.0,3.4548]
[1756996038068,1.4115,4351.1,4351.0,3.2078]
[1756996038271,1.4115,4351.4,4351.1,0.9873]
[1756996038464,1.4115,4351.4,4351.2,0.247]
[1756996038775,1.4115,4351.4,4351.0,3.2078]
[1756996038776,0.745,4351.1,4351.0,3.2078]
[1756996038977,2.1565,4351.1,4351.0,3.4548]
[1756996040271,0.5603,4351.0,4350.7,0.247]
[1756996040476,1.4115,4350.9,4350.7,0.247]
[1756996040871,1.4115,4350.9,4350.5,3.2078]
[1756996041067,0.247,4350.9,4350.5,3.2078]
[1756996041579,1.4115,4350.8,4350.5,1.7198]
[1756996041877,1.4115,4350.8,4350.5,0.1902]
[1756996042373,0.5603,4349.5,4349.3,2.85755634]
[1756996042573,1.4115,4349.4,4349.3,2.85755634]
[1756996042874,1.4115,4349.4,4349.3,0.247]
[1756996043277,3.7681,4350.5,4349.4,0.9873]
[1756996043578,1.4115,4350.4,4349.6,0.9873]
[1756996043777,1.4115,4350.4,4349.7,0.247]
[1756996044073,0.5603,4350.0,4349.7,0.247]
[1756996044280,1.4115,4349.9,4349.7,0.247]
[1756996044973,0.5603,4349.5,4349.3,0.247]
[1756996045274,0.5603,4349.5,4348.6,0.9873]
[1756996045275,1.4115,4349.4,4348.4,2.85755634]
[1756996045477,3.7681,4349.5,4348.4,3.10455634]
[1756996045478,1.9718,4348.5,4348.4,3.10455634]
[1756996045676,1.9718,4348.5,4348.4,0.247]
[1756996048382,1.4115,4348.9,4348.4,0.247]
[1756996048681,1.4115,4348.7,4348.4,0.247]
[1756996048881,1.4115,4349.4,4348.6,0.9873]
[1756996049079,1.4115,4349.4,4348.7,0.247]
[1756996049480,1.4115,4349.4,4348.8,3.2078]
[1756996049685,1.4115,4349.4,4348.9,0.9873]
[1756996049979,1.4115,4349.9,4349.0,0.247]
[1756996050175,1.4115,4349.9,4349.1,0.9873]
[1756996050979,1.4115,4349.9,4349.2,0.41375]
[1756996051281,1.4115,4349.9,4349.4,0.9873]
[1756996051780,1.4115,4349.9,4349.3,0.66074]
[1756996051981,1.4115,4349.9,4349.3,1.64804]
[1756996052183,1.4115,4349.9,4349.4,0.64364]
[1756996052374,1.4115,4349.9,4349.5,0.9873]
[1756996052692,1.4115,4349.9,4349.6,0.247]
[1756996052988,1.4115,4349.8,4349.7,0.247]
[1756996053491,1.4115,4349.9,4349.7,0.247]
[1756996053888,1.4115,4350.4,4349.8,0.9873]
[1756996054092,3.7681,4350.5,4349.9,3.62149]
[1756996054294,5.1796,4350.5,4349.9,4.1951]
[1756996054591,1.4115,4350.4,4349.9,3.2078]
[1756996054891,1.4115,4350.4,4350.0,0.247]
[1756996056090,1.4115,4350.3,4350.0,0.247]
[1756996056292,3.7681,4350.5,4350.0,0.247]
[1756996056678,1.4115,4350.4,4350.0,0.247]
[1756996057086,1.9718,4350.0,4349.9,3.2078]
[1756996057287,1.9718,4350.0,4349.9,3.4548]
[1756996058294,1.9718,4350.0,4349.9,0.247]
[1756996060391,1.4115,4350.4,4349.9,1.2343]
[1756996060690,3.7681,4350.5,4349.9,0.247]
[1756996061089,0.5603,4350.5,4350.0,0.9873]
[1756996061396,1.4115,4350.4,4350.2,3.2078]
[1756996061593,1.4115,4350.4,4350.3,0.247]
[1756996063989,5.0606,4351.0,4350.4,0.9746]
[1756996064300,0.5397,4353.0,4350.9,3.2078]
[1756996064301,1.8528,4351.5,4350.9,3.2078]
[1756996064598,1.2925,4351.4,4351.0,1.2206]
[1756996064787,0.5603,4351.5,4351.0,1.2206]
[1756996064987,1.2925,4351.4,4351.1,0.9746]
[1756996065193,1.2925,4351.4,4351.1,1.38817]
[1756996065396,1.2925,4351.4,4351.2,0.9746]
[1756996065596,1.2925,4351.4,4351.3,0.246]
[1756996066702,1.2925,4351.4,4351.3,5.32113992]
[1756996067192,1.2925,4351.9,4351.5,0.41353]
[1756996067496,0.5397,4352.5,4351.6,0.246]
[1756996067803,1.2925,4351.9,4351.6,0.246]
[1756996068902,0.5397,4351.5,4351.3,0.246]
[1756996069096,0.5397,4351.5,4350.0,7.30833992]
[1756996069097,1.2925,4350.9,4350.0,7.30833992]
[1756996069400,1.2925,4350.9,4350.1,0.246]
[1756996069600,1.2925,4350.4,4350.1,0.246]
[1756996069795,1.2925,4350.4,4350.1,1.4666]
[1756996070195,0.5397,4350.5,4350.1,1.4666]
[1756996070793,1.2925,4350.4,4350.2,1.2206]
[1756996071399,1.2925,4350.9,4350.3,0.41365]
[1756996071602,3.7475,4351.0,4350.5,4.10053992]
[1756996071795,3.7475,4351.0,4350.5,5.32113992]
[1756996071996,1.2925,4350.9,4350.5,5.32113992]
[1756996072196,3.7475,4351.0,4350.5,5.32113992]
[1756996072396,0.5397,4350.5,4350.4,0.246]
[1756996073304,1.8322,4350.5,4350.4,0.246]
[1756996076201,3.6442,4350.5,4350.4,0.246]
[1756996076996,3.6442,4350.5,4350.4,1.1213]
[1756996077403,3.6442,4350.5,4350.4,2.0564]
[1756996078311,1.2925,4350.9,4350.4,3.277]
[1756996078611,0.9286,4350.5,4350.4,2.47004]
[1756996078907,2.2211,4350.5,4350.4,2.47004]
[1756996079107,2.2211,4350.5,4350.4,2.0564]
[1756996079304,0.5397,4351.0,4350.4,3.69064]
[1756996079507,1.2925,4350.9,4350.4,3.69064]
[1756996079710,1.2925,4350.9,4350.4,2.47004]
[1756996080006,0.5397,4351.0,4350.4,2.47004]
[1756996080410,2.2211,4350.9,4350.8,0.8753]
[1756996080611,1.2925,4350.9,4350.8,2.0564]
[1756996080821,2.2211,4350.9,4350.8,2.0564]
[1756996081213,3.1045,4350.9,4350.8,0.246]
[1756996082311,0.5397,4350.5,4350.4,2.85755634]
[1756996082516,3.6442,4350.5,4350.4,0.246]
[1756996083221,3.6442,4350.5,4350.2,2.85755634]
[1756996083222,3.1045,4350.3,4350.2,2.85755634]
[1756996083417,3.1045,4350.3,4350.2,3.97885634]
[1756996084521,2.2211,4350.3,4350.2,5.32761634]
[1756996084723,2.2211,4350.3,4350.2,6.54821634]
[1756996084923,2.2211,4350.3,4350.2,3.277]
[1756996085514,0.5397,4350.5,4350.3,0.41365]
[1756996085721,1.8322,4350.5,4350.4,2.0564]
[1756996085923,2.7608,4350.5,4350.4,2.0564]
[1756996086422,3.6442,4350.5,4350.4,0.246]
[1756996088814,2.3517,4350.5,4350.0,3.2078]
[1756996089015,1.2925,4350.4,4350.1,0.246]
[1756996089215,3.1045,4350.2,4350.1,0.246]
[1756996092722,3.1045,4350.2,4350.1,1.186]
[1756996093322,3.1045,4350.2,4350.1,0.246]
[1756996094120,3.1045,4350.2,4350.1,1.186]
[1756996094323,1.3058,4350.5,4350.4,1.8784]
[1756996094626,2.7118,4350.5,4350.4,3.71224]
[1756996094818,0.5397,4351.0,4350.9,1.8784]
[1756996095024,3.7475,4351.5,4350.9,1.8784]
[1756996095025,3.7475,4351.5,4350.9,6.63852992]
[1756996095224,3.7475,4351.5,4350.9,6.22493992]
[1756996095424,2.1976,4351.0,4350.9,6.22493992]
[1756996095627,3.5819,4351.0,4350.9,6.22493992]
[1756996096432,3.7475,4351.5,4350.9,7.39913992]
[1756996096632,6.8152,4351.5,4351.4,0.94]
[1756996096928,6.8152,4351.5,4351.4,1.186]
[1756996097231,3.6074,4351.5,4351.4,0.246]
[1756996097422,3.6074,4351.5,4351.4,1.186]
[1756996098527,2.7373,4351.5,4351.4,6.22493992]
[1756996098831,1.3058,4351.5,4351.4,7.39113992]
[1756996099033,2.1976,4351.9,4351.8,0.94]
[1756996099233,2.1976,4351.9,4351.8,1.186]
[1756996099428,3.0677,4351.9,4351.8,1.186]
[1756996101129,0.8918,4351.9,4351.8,6.22493992]
[1756996101326,3.0677,4351.9,4351.8,6.22493992]
[1756996101528,3.0677,4351.9,4351.8,1.186]
[1756996102424,3.0677,4351.9,4351.8,0.246]
[1756996103033,3.0677,4351.9,4351.8,1.186]
[1756996103334,3.0677,4351.9,4351.8,2.1244]
[1756996103537,3.0677,4351.9,4351.8,6.22493992]
[1756996103730,1.3058,4351.9,4351.8,7.39113992]
[1756996104034,1.3058,4352.4,4351.9,0.4135]
[1756996104234,1.3058,4352.4,4352.0,0.246]
[1756996104436,2.1976,4352.1,4352.0,2.1244]
[1756996105036,1.3058,4352.9,4352.4,0.41345]
[1756996105338,0.5142,4354.0,4352.6,5.0862]
[1756996105339,2.1976,4352.7,4352.6,5.0862]
[1756996105533,2.1976,4352.7,4352.6,6.4984]
[1756996106630,1.3058,4352.7,4352.6,6.4984]
[1756996108235,2.1976,4352.7,4352.6,6.4984]
[1756996108837,2.1976,4352.7,4352.6,5.3322]
[1756996109643,2.1976,4352.7,4352.6,6.4984]
[1756996109827,1.3058,4352.7,4352.6,6.72364643]
[1756996110232,1.3058,4353.0,4352.9,3.0446]
[1756996110537,2.1976,4353.5,4353.4,1.8784]
[1756996110840,2.2761,4354.0,4353.9,0.94]
[1756996111137,2.2761,4354.0,4353.9,1.186]
[1756996111335,2.2761,4354.0,4353.9,2.1244]
[1756996112032,2.2761,4354.0,4353.9,1.186]
[1756996112832,3.5819,4354.0,4353.9,1.186]
[1756996113232,3.0677,4354.0,4353.9,3.3765]
[1756996113444,1.7619,4354.5,4354.4,1.8784]
[1756996113634,2.2761,4354.5,4354.4,1.186]
[1756996113838,1.7619,4354.5,4354.4,3.3765]
[1756996114143,0.8918,4354.5,4354.4,10.68483992]
[1756996115741,1.3058,4354.7,4354.5,1.2521]
[1756996115934,2.1976,4354.7,4354.6,3.3765]
[1756996116330,3.0677,4354.7,4354.6,3.3765]
[1756996117841,3.0677,4354.7,4354.6,1.186]
[1756996118536,2.2761,4354.5,4354.4,3.2078]
[1756996118742,3.5819,4354.5,4354.4,3.4528]
[1756996118943,3.5819,4354.5,4354.4,5.6449]
[1756996119140,3.5819,4354.5,4354.4,3.4528]
[1756996120639,3.5819,4354.5,4354.4,0.245]
[1756996124847,0.5415,4354.0,4353.5,0.5199]
[1756996125045,2.1678,4353.6,4353.5,3.0125]
[1756996125244,2.1678,4353.6,4353.5,3.2575]
[1756996125447,3.0889,4353.6,4353.5,3.2575]
[1756996125642,3.0889,4353.6,4353.5,4.61312547]
[1756996126735,3.0889,4353.6,4353.5,3.29162547]
[1756996127135,3.0889,4353.6,4353.5,1.60062547]
[1756996127332,3.0889,4353.6,4353.5,0.245]
[1756996130341,4.44452547,4353.6,4353.5,0.245]
[1756996130935,7.65232547,4353.6,4353.5,0.245]
[1756996132152,6.2967,4353.6,4353.5,1.0982]
[1756996133251,6.2967,4353.6,4353.5,0.245]
[1756996136153,6.2967,4353.6,4353.5,1.0982]
[1756996136660,3.0889,4353.6,4353.5,1.0982]
[1756996136848,2.1678,4353.6,4353.5,3.2575]
[1756996137049,0.9211,4353.7,4353.6,1.3215]
[1756996137357,3.0889,4353.7,4353.5,0.245]
[1756996137559,3.0889,4353.7,4353.6,1.691]
[1756996137853,1.2926,4354.0,4353.6,1.691]
[1756996138056,1.2926,4354.0,4353.5,0.7649]
[1756996138057,3.0889,4353.8,4353.7,0.8532]
[1756996138256,3.0889,4353.8,4353.5,0.245]
[1756996138654,1.7963,4353.8,4353.7,0.8532]
[1756996138854,3.0889,4353.8,4353.7,3.0125]
[1756996139055,1.2926,4354.0,4353.8,1.3215]
[1756996139255,2.1678,4354.0,4353.9,3.2575]
[1756996139558,3.0889,4354.0,4353.9,3.2575]
[1756996140652,3.6304,4354.0,4353.9,0.245]
[1756996141351,3.0889,4354.0,4353.9,3.2575]
[1756996141553,3.0889,4354.0,4353.9,0.245]
[1756996141554,3.6304,4354.0,4353.9,0.245]
[1756996143445,3.6304,4354.0,4353.9,1.0982]
[1756996143661,3.0889,4354.0,4353.9,3.2575]
[1756996144154,3.6031,4354.5,4354.4,1.691]
[1756996144360,3.6031,4354.5,4354.4,3.2575]
[1756996144561,3.0889,4354.5,4354.4,3.2575]
[1756996144860,3.2078,4354.8,4354.4,3.2575]
[1756996144861,1.2926,4354.7,4354.5,1.8414]
[1756996145058,2.1678,4354.7,4354.6,3.0125]
[1756996145454,0.8752,4354.7,4354.6,3.0125]
[1756996146352,3.0889,4354.7,4354.6,3.0125]
[1756996146960,3.0889,4354.7,4354.6,1.691]
[1756996147254,3.0889,4354.7,4354.5,3.2078]
[1756996147255,1.2926,4354.4,4354.0,3.2078]
[1756996147460,3.0889,4354.1,4354.0,3.2078]
[1756996147661,3.0889,4354.1,4354.0,3.4528]
[1756996148261,3.0889,4354.1,4354.0,0.245]
[1756996149956,3.0889,4354.1,4354.0,1.0982]
[1756996150251,3.0889,4354.1,4354.0,3.2575]
[1756996151758,3.0889,4354.1,4354.0,1.0982]
[1756996151970,3.0889,4354.1,4354.0,0.245]
[1756996152262,3.0889,4354.1,4354.0,3.2661]
[1756996152463,3.0889,4354.1,4354.0,1.0982]
[1756996152864,3.0889,4354.1,4354.0,0.245]
[1756996153064,3.0889,4354.1,4354.0,1.0731]
[1756996153566,3.0889,4354.1,4354.0,0.245]
[1756996155562,0.5245,4354.0,4353.4,2.88609842]
[1756996155768,3.5107,4353.5,4353.4,3.71419842]
[1756996156065,3.5107,4353.5,4353.4,2.4032]
[1756996156372,2.9862,4353.4,4353.3,6.09389842]
[1756996156763,2.9862,4353.4,4353.3,3.2078]
[1756996158169,2.9862,4353.4,4353.2,0.245]
[1756996159866,1.2673,4353.3,4353.2,0.245]
[1756996160061,2.9862,4353.3,4353.2,3.2765]
[1756996160261,2.9862,4353.3,4353.2,1.0731]
[1756996160467,0.5245,4353.0,4352.7,3.2078]
[1756996160666,2.9862,4352.8,4352.7,4.0359]
[1756996160860,2.9862,4352.8,4352.7,6.4843]
[1756996161472,2.9862,4352.8,4352.7,4.0359]
[1756996161771,2.9862,4352.8,4352.7,3.4528]
[1756996161971,2.9862,4352.8,4352.7,6.4843]
[1756996162471,2.1614,4352.8,4352.7,6.4843]
[1756996162675,2.9862,4352.8,4352.7,6.4843]
[1756996163673,2.9862,4352.8,4352.7,3.2078]
[1756996163870,1.7189,4352.8,4352.7,0.244]
[1756996164574,1.2673,4352.7,4352.6,31.706]
[1756996164771,1.2673,4352.7,4352.6,31.95]
[1756996165172,1.2673,4352.7,4352.6,33.2801]
[1756996165373,3.2078,4353.2,4352.9,1.7014]
[1756996165570,3.2078,4353.2,4353.1,3.0315]
[1756996165775,4.1019,4353.2,4353.1,3.2755]
[1756996165973,5.3692,4353.2,4353.1,3.2755]
[1756996166281,6.194,4353.2,4353.1,3.2755]
[1756996166988,4.9267,4353.2,4353.1,0.244]
[1756996167376,4.9267,4353.2,4352.7,1.3301]
[1756996167579,2.9862,4352.9,4352.8,3.2755]
[1756996167779,2.9862,4352.9,4352.8,2.1283]
[1756996167978,2.9862,4352.9,4352.8,1.9454]
[1756996168280,2.9862,4352.9,4352.8,0.244]
[1756996168672,1.2673,4352.8,4352.6,31.706]
[1756996168881,2.9862,4352.7,4352.6,31.706]
[1756996169077,2.9862,4352.7,4352.2,0.23183612]
[1756996169078,2.9862,4352.3,4352.2,0.23183612]
[1756996169374,2.9862,4352.3,4352.2,0.47583612]
[1756996169981,2.9862,4352.3,4352.2,0.244]
[1756996171584,7.21597,4352.3,4352.2,0.244]
[1756996171880,6.9862,4352.3,4351.9,0.244]
[1756996172187,3.5107,4352.0,4351.9,0.244]
[1756996172382,0.5245,4351.5,4351.1,0.22948229]
[1756996172686,2.9862,4351.2,4351.1,3.26098229]
[1756996172882,2.9862,4351.2,4351.1,3.2755]
[1756996173386,2.9862,4351.2,4351.1,1.9454]
[1756996173582,1.2673,4351.1,4351.0,3.2078]
[1756996173777,2.9862,4351.1,4351.0,3.4518]
[1756996173978,2.9862,4351.1,4351.0,4.2799]
[1756996174180,2.9862,4351.1,4351.0,1.0721]
[1756996174491,2.9862,4351.1,4351.0,0.244]
[1756996174684,0.5245,4351.5,4351.0,3.2755]
[1756996174882,0.5245,4352.0,4351.4,1.3301]
[1756996175189,1.2673,4352.3,4351.9,3.0315]
[1756996175384,2.9862,4352.4,4352.3,0.8281]
[1756996175585,2.9862,4352.4,4352.3,1.0721]
[1756996176188,2.9862,4352.4,4352.3,1.9454]
[1756996179784,2.9862,4352.4,4352.3,0.244]
[1756996180289,3.5107,4352.0,4351.9,4.0359]
[1756996180487,3.5107,4352.0,4351.9,6.4833]
[1756996180684,2.1614,4352.0,4351.9,6.4833]
[1756996181284,1.3821,4352.2,4351.9,3.4518]
[1756996181489,1.3821,4352.2,4352.1,3.0315]
[1756996181688,2.2762,4352.2,4352.1,3.0315]
[1756996182081,1.4186,4352.0,4351.9,4.2799]
[1756996182286,2.1614,4352.0,4351.9,6.3908]
[1756996182988,1.3416,4352.2,4351.9,5.1532]
[1756996183289,3.0175,4352.2,4352.1,1.7518]
[1756996184492,3.0175,4352.2,4352.1,2.9894]
[1756996184695,0.1148,4352.2,4352.1,3.2334]
[1756996185391,2.1879,4352.2,4352.1,3.2334]
[1756996186182,3.0175,4352.2,4352.1,1.9958]
[1756996186383,3.0175,4352.2,4352.1,3.2334]
[1756996186795,3.0175,4352.2,4352.1,1.9958]
[1756996187592,0.1148,4352.2,4352.1,3.2334]
[1756996187792,0.1148,4352.2,4352.1,3.64688]
[1756996189392,0.1148,4352.2,4352.1,3.2334]
[1756996189894,2.1879,4352.2,4352.1,3.2334]
[1756996190390,2.1879,4352.2,4351.9,6.09389842]
[1756996190391,2.1629,4352.0,4351.9,6.09389842]
[1756996190591,3.3897,4352.0,4351.9,6.33789842]
[1756996190785,3.3897,4352.0,4351.9,3.2078]
[1756996190986,3.3897,4352.0,4351.9,4.3434]
[1756996191293,1.2268,4352.0,4351.9,6.4412]
[1756996191488,0.1148,4352.2,4351.9,6.4412]
[1756996191690,2.1879,4352.2,4352.1,1.7518]
[1756996191995,2.1879,4352.2,4352.1,3.2334]
[1756996192397,3.0175,4352.2,4352.1,1.9958]
[1756996192790,3.0175,4352.2,4352.1,0.244]
[1756996193595,3.0175,4352.2,4352.1,1.9958]
[1756996194297,3.0175,4352.2,4352.1,1.1356]
[1756996194694,3.0175,4352.2,4352.1,0.244]
[1756996197293,3.0175,4352.2,4352.1,1.1356]
[1756996197593,3.0175,4352.2,4352.1,1.9958]
[1756996198002,3.0175,4352.2,4352.1,3.2334]
[1756996198194,0.1148,4352.2,4352.1,3.2334]
[1756996199201,0.1148,4352.2,4352.1,3.64688]
[1756996199397,0.1148,4352.2,4352.1,4.79946605]
[1756996200296,3.0175,4352.2,4352.1,3.14838605]
[1756996200501,3.0175,4352.2,4352.1,1.1356]
[1756996200896,3.0175,4352.2,4352.1,0.244]
[1756996201101,1.2268,4352.2,4352.1,4.38598605]
[1756996201491,2.9027,4352.2,4352.1,3.14838605]
[1756996201695,2.9027,4352.2,4352.1,0.244]
[1756996201895,4.05528605,4352.2,4351.9,3.2078]
[1756996202191,3.0175,4352.2,4352.1,0.244]
[1756996203194,3.0175,4352.2,4351.8,3.2078]